bitfinex/quotes_BTCUSD_20250604
["timestamp","ask_amount","ask_price","bid_price","bid_amount"]
[1749067361827,0.76651562,104840.0,104830.0,0.43344]
[1749067363136,0.72651562,104840.0,104830.0,0.43344]
[1749067364299,0.71697755,104840.0,104830.0,0.43344]
[1749067365326,1.53768879,104840.0,104830.0,0.43344]
[1749067365537,1.52815081,104840.0,104830.0,0.43344]
[1749067366399,2.28765572,104840.0,104830.0,0.43344]
[1749067366619,2.29719379,104840.0,104830.0,0.43344]
[1749067366828,2.30673195,104840.0,104830.0,0.43344]
[1749067367495,2.29719379,104840.0,104830.0,0.43344]
[1749067368395,2.30673204,104840.0,104830.0,0.43344]
[1749067369045,2.30673195,104840.0,104830.0,0.43344]
[1749067369469,2.29719379,104840.0,104830.0,0.43344]
[1749067369780,2.29719379,104840.0,104830.0,0.23736]
[1749067369984,1.53768879,104840.0,104830.0,0.43344]
[1749067370409,1.51900991,104840.0,104830.0,0.43344]
[1749067371029,1.52854742,104840.0,104830.0,0.43344]
[1749067377338,1.48854742,104840.0,104830.0,0.43344]
[1749067377571,1.4980854,104840.0,104830.0,0.43344]
[1749067378728,1.47900954,104840.0,104830.0,0.43344]
[1749067378982,1.48854742,104840.0,104830.0,0.43344]
[1749067379201,1.47900954,104840.0,104830.0,0.43344]
[1749067379952,1.48854733,104840.0,104830.0,0.43344]
[1749067381241,1.50762347,104840.0,104830.0,0.43344]
[1749067381447,1.67931486,104840.0,104830.0,0.23736]
[1749067381659,1.69074158,104840.0,104830.0,0.43344]
[1749067381920,2.45024676,104840.0,104830.0,0.43344]
[1749067382141,2.45024676,104840.0,104830.0,0.41724]
[1749067382578,2.25947988,104840.0,104830.0,0.43374]
[1749067383025,2.24994163,104840.0,104830.0,0.43374]
[1749067383440,2.24994117,104840.0,104830.0,0.43374]
[1749067383866,2.24994098,104840.0,104830.0,0.43374]
[1749067384043,1.53043607,104840.0,104830.0,0.43374]
[1749067384264,1.51900935,104840.0,104830.0,0.43374]
[1749067385605,2.26897628,104840.0,104830.0,0.43374]
[1749067386257,2.27851435,104840.0,104830.0,0.43374]
[1749067387315,2.47881939,104840.0,104830.0,0.23766]
[1749067387560,2.50247062,104840.0,104830.0,0.24616]
[1749067387773,2.51765991,104840.0,104830.0,0.40184]
[1749067388000,2.50623319,104840.0,104830.0,0.40184]
[1749067388219,2.51764891,104840.0,104830.0,0.40184]
[1749067388434,2.51764891,104840.0,104830.0,0.20576]
[1749067388650,2.50623319,104840.0,104830.0,0.40184]
[1749067389294,2.50623319,104840.0,104830.0,0.41077167]
[1749067390057,4.75813398,104840.0,104830.0,0.41077168]
[1749067390301,2.50923319,104840.0,104830.0,0.41077169]
[1749067390541,0.20032424,104830.0,104820.0,0.02]
[1749067390776,2.48029226,104830.0,104820.0,0.43081169]
[1749067391006,1.72845957,104830.0,104820.0,0.42188]
[1749067391232,1.72845957,104830.0,104820.0,0.44661166]
[1749067391470,1.68900779,104830.0,104820.0,0.44661166]
[1749067391707,1.71761779,104830.0,104820.0,0.44661166]
[1749067391942,1.71761779,104830.0,104820.0,0.44661156]
[1749067392175,1.71761779,104830.0,104820.0,0.43768]
[1749067392427,1.72715695,104830.0,104820.0,0.46311154]
[1749067392672,1.72715695,104830.0,104820.0,0.46311152]
[1749067392902,1.59584261,104830.0,104820.0,0.26703152]
[1749067393163,1.78662769,104830.0,104820.0,0.46311152]
[1749067393415,1.75761779,104830.0,104820.0,0.46311152]
[1749067393910,1.75761779,104830.0,104820.0,0.45418]
[1749067394145,1.75761779,104830.0,104820.0,0.46311152]
[1749067394880,1.56683271,104830.0,104820.0,0.46311152]
[1749067395133,1.75761779,104830.0,104820.0,0.46311152]
[1749067395387,1.77391779,104830.0,104820.0,0.02891814]
[1749067395625,1.77391779,104830.0,104800.0,0.3314]
[1749067395626,0.20036237,104810.0,104800.0,0.3314]
[1749067395870,0.20036237,104810.0,104800.0,0.73328]
[1749067395871,0.77844652,104810.0,104800.0,0.73328]
[1749067396333,0.80706015,104810.0,104800.0,0.73328]
[1749067396574,0.81660031,104810.0,104800.0,0.73328]
[1749067397036,0.81660031,104810.0,104800.0,0.73337162]
[1749067397273,0.79951908,104810.0,104800.0,0.73337162]
[1749067397516,0.84056739,104810.0,104800.0,0.73337162]
[1749067398298,0.8596488,104810.0,104800.0,0.73337162]
[1749067398512,0.85964871,104810.0,104800.0,0.73337162]
[1749067398717,0.84056739,104810.0,104800.0,0.73337162]
[1749067399116,0.07124558,104810.0,104800.0,0.73337162]
[1749067399335,0.83102696,104810.0,104800.0,0.73337162]
[1749067399549,0.84056739,104810.0,104800.0,0.73337162]
[1749067400175,0.83102696,104810.0,104800.0,0.73337162]
[1749067400392,0.82148662,104810.0,104800.0,0.73337162]
[1749067400598,0.82190317,104810.0,104800.0,0.73337162]
[1749067401426,0.82190317,104810.0,104800.0,0.7511706]
[1749067402265,0.82190317,104810.0,104800.0,0.75116816]
[1749067403476,0.82190317,104810.0,104800.0,0.75116664]
[1749067403714,0.82190317,104810.0,104800.0,0.73337162]
[1749067404197,0.82190317,104810.0,104800.0,0.75116636]
[1749067404440,0.8314436,104810.0,104800.0,0.75116636]
[1749067404677,0.8314436,104810.0,104800.0,0.73337162]
[1749067404923,0.8314436,104810.0,104800.0,0.75116636]
[1749067405635,0.84098421,104810.0,104800.0,0.75116636]
[1749067405861,0.8314436,104810.0,104800.0,0.75116636]
[1749067406152,0.82190317,104810.0,104800.0,0.75116829]
[1749067406377,0.81236283,104810.0,104800.0,0.84702259]
[1749067406640,0.81236283,104810.0,104800.0,1.12922592]
[1749067406848,0.78374883,104810.0,104800.0,1.14702222]
[1749067407275,0.78374883,104810.0,104800.0,1.14702608]
[1749067407480,0.78374883,104810.0,104800.0,1.15592616]
[1749067407695,0.78374883,104810.0,104800.0,1.14702594]
[1749067408122,0.78374883,104810.0,104800.0,1.15592589]
[1749067408558,0.78374883,104810.0,104800.0,1.15592587]
[1749067408769,0.78374883,104810.0,104800.0,1.14702594]
[1749067408990,0.78374883,104810.0,104800.0,1.15592587]
[1749067409183,0.78374883,104810.0,104800.0,1.15594026]
[1749067409586,0.78374883,104810.0,104800.0,1.12922592]
[1749067409791,0.78374883,104810.0,104800.0,1.1381307]
[1749067410004,0.78374883,104810.0,104800.0,1.15594026]
[1749067410225,0.78374883,104810.0,104800.0,1.15594272]
[1749067410435,0.78374883,104810.0,104800.0,1.1559427]
[1749067410638,0.78374883,104810.0,104800.0,1.15594758]
[1749067410843,0.78374883,104810.0,104800.0,1.1470404]
[1749067411056,0.78374883,104810.0,104800.0,1.15594764]
[1749067411261,0.78374883,104810.0,104800.0,1.12922592]
[1749067411670,0.78374883,104810.0,104800.0,1.15594764]
[1749067412446,0.78374883,104810.0,104800.0,1.13813316]
[1749067412684,0.78374883,104810.0,104800.0,1.15595338]
[1749067414109,0.78374883,104810.0,104800.0,1.13813507]
[1749067414327,0.78374883,104810.0,104800.0,1.13813663]
[1749067415619,0.99365181,104810.0,104800.0,0.21480233]
[1749067415853,1.03138202,104810.0,104800.0,0.41088312]
[1749067416056,1.03138202,104810.0,104800.0,0.40197162]
[1749067416260,1.02184141,104810.0,104800.0,0.41088339]
[1749067416466,1.02184141,104810.0,104800.0,0.41089432]
[1749067416660,1.02184141,104810.0,104800.0,0.40197162]
[1749067416866,1.02184314,104810.0,104800.0,0.40197162]
[1749067417131,1.80448418,104810.0,104800.0,0.41981707]
[1749067417313,1.05424314,104810.0,104800.0,0.22373707]
[1749067417535,1.80448418,104810.0,104800.0,0.41981555]
[1749067417662,1.80448418,104810.0,104800.0,0.42009556]
[1749067417877,1.80448418,104810.0,104800.0,0.42013557]
[1749067418074,1.05424314,104810.0,104800.0,0.42013557]
[1749067418273,1.05424314,104810.0,104800.0,0.42021557]
[1749067418484,1.05424314,104810.0,104800.0,0.41129434]
[1749067418694,1.05424314,104810.0,104780.0,6e-05]
[1749067418695,0.20994305,104790.0,104780.0,6e-05]
[1749067418926,0.20994305,104790.0,104780.0,0.40297825]
[1749067418927,1.71954007,104790.0,104780.0,0.40297825]
[1749067419778,1.52868217,104790.0,104780.0,0.40297825]
[1749067419986,1.52868162,104790.0,104780.0,0.20737825]
[1749067420209,1.53822424,104790.0,104780.0,0.40349825]
[1749067421106,1.53822424,104790.0,104780.0,0.42131975]
[1749067421322,1.52868162,104790.0,104780.0,0.22419975]
[1749067421539,1.52868162,104790.0,104780.0,0.40369825]
[1749067421752,1.53822415,104790.0,104780.0,0.42151975]
[1749067421939,0.00911494,104790.0,104780.0,0.45361974]
[1749067422144,1.52868152,104790.0,104780.0,0.45361974]
[1749067422351,1.52868152,104790.0,104780.0,0.22419974]
[1749067422553,1.52868152,104790.0,104780.0,0.42151974]
[1749067422964,1.52868152,104790.0,104780.0,0.40369825]
[1749067423172,1.52910902,104790.0,104780.0,0.40369825]
[1749067423372,1.52910902,104790.0,104780.0,0.20637825]
[1749067423580,1.52905562,104790.0,104780.0,0.40365825]
[1749067424013,1.52905562,104790.0,104780.0,0.20637825]
[1749067424227,1.50997084,104790.0,104780.0,0.41885825]
[1749067424436,1.51951318,104790.0,104780.0,0.41885825]
[1749067424651,1.50997084,104790.0,104780.0,0.41885825]
[1749067425597,1.51002415,104790.0,104780.0,0.41885825]
[1749067426052,1.53864615,104790.0,104780.0,0.41885825]
[1749067427091,1.52910408,104790.0,104780.0,0.41885825]
[1749067428438,1.53864615,104790.0,104780.0,0.41885825]
[1749067428859,0.03816407,104790.0,104780.0,0.41885825]
[1749067429064,0.028622,104790.0,104780.0,0.43385825]
[1749067429284,1.52910408,104790.0,104780.0,0.43385825]
[1749067431012,1.53864615,104790.0,104780.0,0.43385825]
[1749067431217,1.53864615,104790.0,104780.0,0.44276222]
[1749067431647,1.53864615,104790.0,104780.0,0.43385825]
[1749067431880,1.52910408,104790.0,104780.0,0.44276222]
[1749067432090,1.53864624,104790.0,104780.0,0.44276222]
[1749067432302,1.52910408,104790.0,104780.0,0.44276222]
[1749067432509,1.53864615,104790.0,104780.0,0.44276222]
[1749067432726,1.53864615,104790.0,104780.0,0.44275968]
[1749067432934,1.53864615,104790.0,104780.0,0.43385825]
[1749067433359,1.53864615,104790.0,104780.0,0.4427583]
[1749067434250,1.53864615,104790.0,104780.0,0.2858783]
[1749067434475,1.54818831,104790.0,104780.0,0.4132374]
[1749067434709,1.54818831,104790.0,104780.0,0.40433825]
[1749067434925,1.55773065,104790.0,104780.0,0.4290374]
[1749067435138,1.55773065,104790.0,104780.0,0.42013825]
[1749067435350,1.54818831,104790.0,104780.0,0.4290374]
[1749067435562,1.55773075,104790.0,104780.0,0.4132374]
[1749067435700,1.54818831,104790.0,104780.0,0.2152774]
[1749067435917,1.55773065,104790.0,104780.0,0.4133974]
[1749067436137,1.55773065,104790.0,104780.0,0.2556774]
[1749067436347,1.55773065,104790.0,104780.0,0.4133974]
[1749067436732,1.54818831,104790.0,104780.0,0.4133974]
[1749067436941,2.61694155,104790.0,104780.0,0.21527695]
[1749067437148,2.61694155,104790.0,104760.0,0.6321]
[1749067437149,2.59785732,104790.0,104760.0,0.6321]
[1749067437357,1.51002615,104770.0,104760.0,0.6321]
[1749067437566,1.51002606,104770.0,104760.0,1.0361]
[1749067437788,0.75978502,104770.0,104760.0,1.0361]
[1749067438002,0.75978502,104770.0,104750.0,0.0107159]
[1749067438003,0.200458,104760.0,104750.0,0.0107159]
[1749067438208,1.71048543,104760.0,104750.0,0.0511159]
[1749067438411,1.71048543,104760.0,104750.0,0.2088359]
[1749067438611,1.71048543,104760.0,104750.0,0.2088759]
[1749067438906,1.5770885,104760.0,104750.0,0.0107159]
[1749067439109,1.55799807,104760.0,104750.0,0.0258159]
[1749067439317,0.80775703,104760.0,104750.0,0.2392759]
[1749067439482,1.55699807,104760.0,104750.0,0.2392759]
[1749067440045,1.55699807,104760.0,104750.0,0.2402759]
[1749067440264,1.53765697,104760.0,104750.0,0.3377702]
[1749067440468,1.53765697,104760.0,104750.0,0.3555536]
[1749067440469,1.52811208,104760.0,104750.0,0.3555536]
[1749067440675,1.52811208,104760.0,104750.0,0.35555376]
[1749067440889,0.02763,104760.0,104750.0,0.35555376]
[1749067441128,1.52811208,104760.0,104750.0,0.35555376]
[1749067441340,1.52811208,104760.0,104750.0,0.35554474]
[1749067441549,1.52811208,104760.0,104750.0,0.35554478]
[1749067442210,1.52811208,104760.0,104750.0,0.35555027]
[1749067442834,1.55624024,104760.0,104750.0,0.35555027]
[1749067443047,1.57533012,104760.0,104750.0,0.1395702]
[1749067443266,1.55624024,104760.0,104750.0,0.35695027]
[1749067443905,1.55624024,104760.0,104750.0,0.3391702]
[1749067444112,1.55624024,104760.0,104750.0,0.56288174]
[1749067444769,1.52811208,104760.0,104750.0,0.56288174]
[1749067445178,1.52811208,104760.0,104750.0,0.56287917]
[1749067445629,1.52811208,104760.0,104750.0,0.5450902]
[1749067445864,1.52811208,104760.0,104750.0,0.5628792]
[1749067446329,1.52811208,104760.0,104750.0,0.5450902]
[1749067446548,1.52811208,104760.0,104750.0,0.3632792]
[1749067446758,0.77787104,104760.0,104750.0,0.5450502]
[1749067446975,0.77787104,104760.0,104750.0,0.56283832]
[1749067447195,0.77787104,104760.0,104750.0,0.56284704]
[1749067447431,0.75024104,104760.0,104750.0,0.56284703]
[1749067448550,0.75024104,104760.0,104750.0,0.56286301]
[1749067448761,0.75024104,104760.0,104750.0,0.5450502]
[1749067449459,0.75024104,104760.0,104750.0,0.57176941]
[1749067450119,0.75024104,104760.0,104750.0,0.57177194]
[1749067450400,0.75024104,104760.0,104750.0,0.56286554]
[1749067450599,0.75024104,104760.0,104750.0,0.5450502]
[1749067450806,0.75024104,104760.0,104750.0,0.56286554]
[1749067451025,0.75024104,104760.0,104750.0,0.57177474]
[1749067451476,0.0951396,104770.0,104760.0,0.0165]
[1749067451691,0.84538064,104770.0,104760.0,0.04322454]
[1749067452320,0.84538064,104770.0,104760.0,0.02540971]
[1749067452542,0.84538064,104770.0,104760.0,0.0329]
[1749067452738,0.84638064,104770.0,104760.0,0.04180971]
[1749067452956,0.85592508,104770.0,104760.0,0.05963514]
[1749067453391,0.85692508,104770.0,104760.0,0.05963514]
[1749067453598,0.85692563,104770.0,104760.0,0.05963514]
[1749067453841,0.85692563,104770.0,104760.0,0.05963669]
[1749067454048,0.85692563,104770.0,104760.0,0.05963979]
[1749067454253,0.85692563,104770.0,104760.0,0.04181326]
[1749067454673,0.85692563,104770.0,104760.0,0.05963979]
[1749067454885,0.8473811,104770.0,104760.0,0.05963979]
[1749067455110,0.83783666,104770.0,104760.0,0.05963979]
[1749067455325,0.84738119,104770.0,104760.0,0.04181326]
[1749067455535,0.09714015,104770.0,104760.0,0.05963979]
[1749067455747,0.84738119,104770.0,104760.0,0.04181326]
[1749067455960,0.84738119,104770.0,104760.0,0.05072653]
[1749067456415,0.84738119,104770.0,104760.0,0.0329]
[1749067456629,0.84738119,104770.0,104760.0,0.05963979]
[1749067456845,0.81874796,104770.0,104760.0,0.05963979]
[1749067457063,0.82829213,104770.0,104760.0,0.05963979]
[1749067457282,0.84738092,104770.0,104760.0,0.05963979]
[1749067457488,0.84738083,104770.0,104760.0,0.21744325]
[1749067457731,0.84738083,104770.0,104760.0,0.1907]
[1749067457949,0.84738083,104770.0,104760.0,0.21744324]
[1749067458638,0.09713979,104770.0,104760.0,0.21744324]
[1749067458859,0.84738083,104770.0,104760.0,0.21744444]
[1749067459529,0.84738083,104770.0,104760.0,0.21744683]
[1749067459966,0.85692554,104770.0,104760.0,0.21744683]
[1749067460180,0.85692545,104770.0,104760.0,0.19961561]
[1749067460401,0.85692545,104770.0,104760.0,0.21744683]
[1749067460617,0.85692536,104770.0,104760.0,0.21744683]
[1749067460850,0.85692536,104770.0,104760.0,0.21744785]
[1749067461508,0.85692536,104770.0,104760.0,0.19961663]
[1749067461734,1.92531503,104770.0,104760.0,0.00891663]
[1749067461952,1.92531503,104770.0,104750.0,0.2166359]
[1749067461953,0.21000317,104760.0,104750.0,0.2166359]
[1749067462167,1.71048525,104760.0,104750.0,0.4744673]
[1749067462390,0.75978593,104760.0,104750.0,0.5703216]
[1749067462627,0.75978584,104760.0,104750.0,0.5703216]
[1749067462860,0.75978584,104760.0,104750.0,0.57032605]
[1749067463295,0.75978584,104760.0,104750.0,0.56141337]
[1749067463534,1.51002688,104760.0,104750.0,0.57033495]
[1749067463800,1.51957187,104760.0,104750.0,0.47448058]
[1749067464050,1.51957187,104760.0,104750.0,0.45659746]
[1749067464474,1.51957177,104760.0,104750.0,0.45659801]
[1749067464701,1.51957177,104760.0,104750.0,0.45660741]
[1749067465155,1.51957177,104760.0,104750.0,0.4476759]
[1749067465428,1.51957177,104760.0,104750.0,0.45660741]
[1749067465676,1.54819977,104760.0,104750.0,0.45660741]
[1749067466367,1.54819977,104760.0,104750.0,0.25736733]
[1749067466607,1.55774485,104760.0,104750.0,0.45656733]
[1749067466848,1.55774485,104760.0,104750.0,0.2484359]
[1749067467094,1.74865851,104760.0,104750.0,0.2166359]
[1749067467326,1.76961343,104760.0,104750.0,0.26724739]
[1749067467799,1.76961343,104760.0,104750.0,0.42472739]
[1749067468044,1.76961343,104760.0,104750.0,0.22556789]
[1749067468278,1.76961343,104760.0,104750.0,0.42472789]
[1749067468514,1.72861343,104760.0,104750.0,0.42472789]
[1749067468745,1.71341343,104760.0,104750.0,0.42472789]
[1749067469044,1.50720087,104760.0,104750.0,0.42472558]
[1749067469297,1.50720087,104760.0,104750.0,0.42472543]
[1749067469555,1.50720087,104760.0,104750.0,0.4157959]
[1749067469797,1.50720087,104760.0,104750.0,0.42472527]
[1749067470042,1.51674649,104760.0,104750.0,0.42472527]
[1749067470329,1.70765905,104760.0,104750.0,0.42472527]
[1749067470750,1.51674649,104760.0,104750.0,0.42472527]
[1749067470984,1.52629057,104760.0,104750.0,0.44042418]
[1749067471219,1.52629048,104760.0,104750.0,0.44042418]
[1749067471452,1.52629048,104760.0,104750.0,0.44042379]
[1749067471585,1.53583601,104760.0,104750.0,0.44042379]
[1749067472443,1.53583601,104760.0,104750.0,0.4314959]
[1749067472699,1.53583601,104760.0,104750.0,0.44042368]
[1749067473158,1.52629048,104760.0,104750.0,0.4314959]
[1749067473361,1.53583601,104760.0,104750.0,0.24126368]
[1749067473558,1.53583601,104760.0,104750.0,0.43986368]
[1749067473732,1.53583601,104760.0,104750.0,0.24126368]
[1749067473943,1.53583601,104760.0,104750.0,0.42420368]
[1749067474168,1.75814857,104760.0,104750.0,0.22556368]
[1749067474358,1.55789121,104760.0,104750.0,0.42420368]
[1749067474549,1.74880431,104760.0,104750.0,0.2166359]
[1749067474752,1.73925914,104760.0,104750.0,0.2166359]
[1749067474893,1.73925914,104760.0,104750.0,0.4152759]
[1749067475099,1.72971379,104760.0,104750.0,0.4242033]
[1749067475326,1.72971379,104760.0,104750.0,0.2668833]
[1749067475535,1.72016826,104760.0,104750.0,0.2181505]
[1749067475750,0.21004326,104740.0,104730.0,0.02]
[1749067475963,1.71052534,104740.0,104730.0,0.26728]
[1749067476177,0.76933475,104740.0,104730.0,0.42464]
[1749067476378,1.51957579,104740.0,104730.0,0.42464]
[1749067476588,1.51957579,104740.0,104730.0,0.22596]
[1749067476810,1.5100288,104740.0,104730.0,0.22696]
[1749067477021,1.5100288,104740.0,104730.0,0.42569119]
[1749067477227,0.75978776,104740.0,104730.0,0.42765119]
[1749067477649,0.79797066,104740.0,104730.0,0.44265119]
[1749067477893,0.81465126,104740.0,104730.0,0.45775119]
[1749067478093,0.82419798,104740.0,104730.0,0.45775119]
[1749067479844,0.82419798,104740.0,104730.0,0.22905119]
[1749067480049,0.83374479,104740.0,104730.0,0.42765119]
[1749067480267,0.84329178,104740.0,104730.0,0.42765119]
[1749067480491,0.83374479,104740.0,104730.0,0.27037119]
[1749067480692,0.84329187,104740.0,104730.0,0.42765119]
[1749067480900,1.6030799,104740.0,104730.0,0.42565119]
[1749067481144,1.6040799,104740.0,104730.0,0.42565119]
[1749067481560,1.6040799,104740.0,104730.0,0.42465119]
[1749067481762,1.60408044,104740.0,104730.0,0.42465119]
[1749067482098,1.60508044,104740.0,104730.0,0.42465119]
[1749067482332,1.60508107,104740.0,104730.0,0.42465119]
[1749067482539,1.60508117,104740.0,104730.0,0.42465119]
[1749067482783,1.60508107,104740.0,104730.0,0.42465119]
[1749067482974,1.59553372,104740.0,104730.0,0.42465119]
[1749067483434,1.55453372,104740.0,104730.0,0.42465119]
[1749067483848,1.55453372,104740.0,104730.0,0.44055119]
[1749067484281,0.84529268,104740.0,104730.0,0.44055119]
[1749067484525,0.84529268,104740.0,104730.0,0.44039119]
[1749067485427,0.84529268,104740.0,104730.0,0.45579119]
[1749067485664,1.58598718,104740.0,104730.0,0.42445119]
[1749067485927,1.58598718,104740.0,104730.0,0.43975119]
[1749067486134,1.58598718,104740.0,104730.0,0.42445119]
[1749067486977,1.59553463,104740.0,104730.0,0.42445119]
[1749067487184,1.78648364,104740.0,104730.0,0.42445119]
[1749067487387,1.58598718,104740.0,104730.0,0.42445119]
[1749067487970,1.59553463,104740.0,104730.0,0.43327735]
[1749067488172,1.78648364,104740.0,104730.0,0.23495735]
[1749067488440,1.78648364,104740.0,104730.0,0.43327735]
[1749067488641,1.78648364,104740.0,104730.0,0.43327726]
[1749067488843,1.78648364,104740.0,104730.0,0.23495726]
[1749067489057,1.78648364,104740.0,104730.0,0.43327726]
[1749067489058,1.79948939,104740.0,104730.0,0.43327726]
[1749067489267,1.79948939,104740.0,104730.0,0.27627884]
[1749067489479,1.79948939,104740.0,104730.0,0.43327884]
[1749067489716,1.79948939,104740.0,104730.0,0.43327891]
[1749067490553,1.75848939,104740.0,104730.0,0.43327891]
[1749067490754,1.75848939,104740.0,104730.0,0.42437119]
[1749067490969,1.75848939,104740.0,104730.0,0.43328153]
[1749067491175,1.75848939,104740.0,104730.0,0.42437119]
[1749067491384,1.75848939,104740.0,104730.0,0.43324153]
[1749067492856,1.75848939,104740.0,104730.0,0.43324271]
[1749067493119,1.75848939,104740.0,104730.0,0.42433119]
[1749067493551,1.75848939,104740.0,104730.0,0.43324271]
[1749067493762,1.72638939,104740.0,104730.0,0.43324271]
[1749067493966,1.72638939,104740.0,104730.0,0.43324309]
[1749067494667,1.72638939,104740.0,104730.0,0.43324598]
[1749067494891,1.72638939,104740.0,104730.0,0.02900598]
[1749067495118,1.75928939,104740.0,104730.0,0.23500598]
[1749067495343,1.85514369,104740.0,104730.0,0.43316598]
[1749067495815,1.85514369,104740.0,104730.0,0.433165]
[1749067496057,1.85414369,104740.0,104730.0,0.433165]
[1749067496287,1.84988369,104740.0,104730.0,0.433165]
[1749067496503,1.84988369,104740.0,104730.0,0.42425119]
[1749067496719,1.84988369,104740.0,104730.0,0.433165]
[1749067496945,1.85188369,104740.0,104730.0,0.433165]
[1749067497682,1.80988369,104740.0,104730.0,0.433165]
[1749067497889,1.80988369,104740.0,104730.0,0.42425119]
[1749067498103,1.81188369,104740.0,104730.0,0.43316418]
[1749067498298,1.81188369,104740.0,104730.0,0.42425119]
[1749067498752,1.80233643,104740.0,104730.0,0.43316536]
[1749067499166,1.82520977,104740.0,104730.0,0.43316536]
[1749067500001,1.82520977,104740.0,104730.0,0.42425119]
[1749067500426,1.82520977,104740.0,104730.0,0.43316759]
[1749067500647,1.82520977,104740.0,104730.0,0.42425119]
[1749067500870,1.82520977,104740.0,104730.0,0.43316747]
[1749067502142,1.82520977,104740.0,104730.0,0.22609119]
[1749067502143,1.85234618,104740.0,104730.0,0.22609119]
[1749067502378,1.86370899,104740.0,104730.0,0.42405119]
[1749067502592,1.86370899,104740.0,104730.0,0.43297275]
[1749067503473,1.86370899,104740.0,104730.0,0.42405119]
[1749067503688,1.86370899,104740.0,104730.0,0.43297268]
[1749067504111,1.86364215,104740.0,104730.0,0.43297268]
[1749067504765,1.82264215,104740.0,104730.0,0.43297268]
[1749067505228,1.82264215,104740.0,104730.0,0.23501268]
[1749067505440,1.82264215,104740.0,104730.0,0.43237271]
[1749067505862,1.82264215,104740.0,104730.0,0.43237931]
[1749067507567,1.82264215,104740.0,104730.0,0.41237931]
[1749067507778,1.82264215,104740.0,104730.0,0.40345119]
[1749067508194,1.82264215,104740.0,104730.0,0.41237921]
[1749067508419,1.82264215,104740.0,104730.0,0.41249921]
[1749067508885,1.82264215,104740.0,104730.0,0.40357119]
[1749067509095,1.82264215,104740.0,104730.0,0.41249921]
[1749067509593,1.82264215,104740.0,104730.0,0.4124992]
[1749067509812,0.32216007,104740.0,104730.0,0.4124992]
[1749067510031,1.82264215,104740.0,104730.0,0.4124992]
[1749067510250,1.82264215,104740.0,104730.0,0.4435992]
[1749067510467,1.82264215,104740.0,104730.0,0.44359917]
[1749067510689,1.82264215,104740.0,104730.0,0.42759917]
[1749067511342,1.82264215,104740.0,104730.0,0.42759951]
[1749067511565,1.82264215,104740.0,104730.0,0.41249951]
[1749067511792,1.78164215,104740.0,104730.0,0.44359951]
[1749067512738,1.78164215,104740.0,104730.0,0.44359978]
[1749067512971,1.78164215,104740.0,104730.0,0.43467119]
[1749067513219,1.78164215,104740.0,104730.0,0.44360014]
[1749067513700,1.59599975,104740.0,104730.0,0.44360014]
[1749067513903,1.59599975,104740.0,104730.0,0.44359995]
[1749067514321,1.59599975,104740.0,104730.0,0.44360034]
[1749067514520,1.78694876,104740.0,104730.0,0.44360034]
[1749067514757,1.78694876,104740.0,104730.0,0.43467119]
[1749067515366,1.78694876,104740.0,104730.0,0.44360093]
[1749067516023,1.78694876,104740.0,104730.0,0.43467119]
[1749067516424,1.78694876,104740.0,104730.0,0.44360221]
[1749067518586,1.78694876,104740.0,104730.0,0.43467119]
[1749067518587,0.09551767,104740.0,104730.0,0.43467119]
[1749067518846,1.55499975,104740.0,104730.0,0.44360388]
[1749067519075,0.02587615,104740.0,104730.0,0.44360388]
[1749067519289,0.76475438,104740.0,104730.0,0.44360384]
[1749067519511,0.7743011,104740.0,104730.0,0.44360384]
[1749067519725,0.7933949,104740.0,104730.0,0.44360384]
[1749067519971,0.76475438,104740.0,104730.0,0.43467119]
[1749067520217,0.7743011,104740.0,104730.0,0.44360325]
[1749067520436,0.7743011,104740.0,104730.0,0.44360316]
[1749067520437,0.76475438,104740.0,104730.0,0.44360316]
[1749067520568,0.76475438,104740.0,104730.0,0.44360464]
[1749067521395,0.76475438,104740.0,104730.0,0.43467119]
[1749067521605,0.76475438,104740.0,104730.0,0.4436018]
[1749067522440,0.76475438,104740.0,104730.0,0.43467119]
[1749067522671,0.76475438,104740.0,104730.0,0.4436018]
[1749067523628,0.76475438,104740.0,104730.0,0.43467119]
[1749067523877,0.76475438,104740.0,104730.0,0.44360285]
[1749067524119,0.76475438,104740.0,104730.0,0.43467119]
[1749067524337,0.7743011,104740.0,104730.0,0.44360285]
[1749067524548,1.54363603,104740.0,104730.0,0.44360285]
[1749067524759,1.53408895,104740.0,104730.0,0.44360285]
[1749067525496,1.54363585,104740.0,104730.0,0.43467119]
[1749067525743,1.54363585,104740.0,104730.0,0.44360066]
[1749067526025,1.54363585,104740.0,104730.0,0.44360057]
[1749067526026,1.49308895,104740.0,104730.0,0.44360057]
[1749067526749,1.50263594,104740.0,104730.0,0.44360057]
[1749067527206,1.50263585,104740.0,104730.0,0.44360057]
[1749067528329,1.49747995,104740.0,104730.0,0.44360057]
[1749067528801,0.46322684,104750.0,104730.0,0.79942549]
[1749067529044,0.46322684,104750.0,104740.0,0.0315]
[1749067529269,0.46322684,104750.0,104740.0,0.04042634]
[1749067530194,1.21346788,104750.0,104740.0,0.04042634]
[1749067530651,1.21346788,104750.0,104740.0,0.04041794]
[1749067531176,1.21346788,104750.0,104740.0,0.04041789]
[1749067531409,1.23715466,104750.0,104740.0,0.04141789]
[1749067531868,1.23715466,104750.0,104740.0,0.13727219]
[1749067532089,1.23715466,104750.0,104740.0,0.1283543]
[1749067532508,1.23715466,104750.0,104740.0,0.13727216]
[1749067532722,0.48691362,104750.0,104740.0,0.13727216]
[1749067532965,1.19615466,104750.0,104740.0,0.13727216]
[1749067533185,0.44591362,104750.0,104740.0,0.13727216]
[1749067533402,1.19615466,104750.0,104740.0,0.13727216]
[1749067534066,1.19615466,104750.0,104740.0,0.13726709]
[1749067534530,0.77392782,104750.0,104740.0,0.13726709]
[1749067534753,0.77392782,104750.0,104740.0,0.1372644]
[1749067535501,0.77392782,104750.0,104740.0,0.1283543]
[1749067535708,0.77392782,104750.0,104740.0,0.13726422]
[1749067535887,0.77392782,104750.0,104740.0,0.1283543]
[1749067536116,0.77392782,104750.0,104740.0,0.13726422]
[1749067536326,0.77392782,104750.0,104740.0,0.1283543]
[1749067536811,0.77392782,104750.0,104740.0,0.13726422]
[1749067537509,0.77392782,104750.0,104740.0,0.13726273]
[1749067537729,0.75024104,104750.0,104740.0,0.13726273]
[1749067537979,0.75024104,104750.0,104740.0,0.23924829]
[1749067537980,0.778879,104750.0,104740.0,0.23924829]
[1749067538194,0.76933274,104750.0,104740.0,0.23924829]
[1749067538422,0.75978675,104750.0,104740.0,0.23924829]
[1749067538661,0.76933256,104750.0,104740.0,0.23924829]
[1749067538885,0.78842463,104750.0,104740.0,0.23920834]
[1749067539165,0.78842454,104750.0,104740.0,0.23920834]
[1749067539403,0.82137509,104750.0,104740.0,0.23920747]
[1749067539619,0.81182883,104750.0,104740.0,0.2303]
[1749067539846,0.81182883,104750.0,104740.0,0.23920747]
[1749067540065,0.77082883,104750.0,104740.0,0.23920747]
[1749067540499,0.78037509,104750.0,104740.0,0.23920747]
[1749067540745,0.77082883,104750.0,104740.0,0.23920747]
[1749067541184,0.77082883,104750.0,104740.0,0.2303]